Cogmind - Beta 9.4 @@@ ROGUE MODE // 2020.03.07 @ 04:43:35 Player: Frank Result: Destroyed by G-47 Trooper with Particle Gun Performance ------------- Evolutions (2) 1000 Regions Visited (3) 600 Robots Destroyed (83) 415 Value Destroyed (1831) 1831 Prototype IDs (2) 40 Alien Tech Used (0) 0 Bonus (114) 114 TOTAL SCORE: 4000 Bonus ------- High Alert Combat Kills 114 Cogmind --------- Core Integrity 0/550 Matter 300/300 Energy 54/100 System Corruption 1% Temperature Cool (18) Movement Walking (120) Location -8/Materials Parts ------- > --- POWER (2) -------- (None) > --- PROPULSION (3) --- Carbon-fiber Leg > --- UTILITY (4) ------ Improved Heat Sink Improved Signal Interpreter > --- WEAPON (2) ------- (None) > --- INVENTORY (4) ---- Melee Analysis Suite Peak State ------------ > --- POWER ------------ Nuclear Core Nuclear Core > --- PROPULSION ------- Light Treads Light Treads Light Treads > --- UTILITY ---------- Cryofiber Web Improved Heat Sink Compact Matter Pod Improved Signal Interpreter > --- WEAPON ----------- Advanced Beam Cannon Flak Cannon > --- INVENTORY -------- Light Ion Engine Improved Heat Sink Hardlight Generator Advanced EMP Blaster [Rating: 27] Favorites ----------- Power Nuclear Core Engine Light Ion Engine Power Core Nuclear Core Propulsion Light Treads Treads Light Treads Leg Aluminum Leg Utility Heat Sink Device Heat Sink Storage Small Storage Unit Processor Transport Network Coupler Hackware Hacking Suite Protection Light Armor Plating Weapon Light Assault Rifle Energy Gun Medium Laser Energy Cannon Advanced Beam Cannon Ballistic Gun Light Assault Rifle Ballistic Cannon Flak Cannon Launcher Advanced EMP Blaster Build | -11 -10 -9 -8 ------- Run | Scr Mat Mat Mat Slots Evolved 4 | . . 2 2 Power 1 | . . 1 . Propulsion 1 | . . . 1 Utility 2 | . . 1 1 Weapon . | . . . . Parts Attached 84 | 6 5 30 43 Power 17 | 1 1 6 9 Engine 13 | 1 . 6 6 Core 4 | . 1 . 3 Reactor . | . . . . Propulsion 21 | 2 . 11 8 Treads 9 | 2 . 2 5 Leg 12 | . . 9 3 Wheel . | . . . . Hover . | . . . . Flight . | . . . . Utility 23 | 1 3 6 13 Device 13 | . 1 3 9 Storage 5 | 1 1 . 3 Processor 2 | . . 1 1 Hackware 1 | . . 1 . Protection 2 | . 1 1 . Artifact . | . . . . Weapon 23 | 2 1 7 13 Energy Gun 4 | 1 1 1 1 Energy Cannon 4 | . . 1 3 Ballistic Gun 6 | 1 . 1 4 Ballistic Cannon 6 | . . 4 2 Launcher 3 | . . . 3 Special Weapon . | . . . . Impact Weapon . | . . . . Slashing Weapon . | . . . . Piercing Weapon . | . . . . Special Melee Weapon . | . . . . Unidentified Prototypes 2 | . . 1 1 Parts Lost 28 | . 1 7 20 Power 6 | . . 2 4 Propulsion 6 | . . 2 4 Utility 7 | . . 2 5 Weapon 9 | . 1 1 7 Highest Loss Streak 9 | . 1 3 9 Average Slot Usage (%) 92 | . 98 94 87 Engine 9 | . 9 14 4 Core 7 | . 4 6 10 Treads 13 | . 28 11 11 Leg 9 | . . 10 11 Device 10 | . 3 14 10 Storage 11 | . 14 10 10 Processor 4 | . . . 11 Hackware 1 | . . 3 . Protection 2 | . 9 1 . Energy Gun 3 | . 12 3 . Energy Cannon 1 | . . 1 2 Ballistic Gun 8 | . 14 5 8 Ballistic Cannon 6 | . . 11 4 Naked Turns . | . . . . Heaviest Build 31 | 12 16 27 31 Greatest Support 60 | 40 40 43 60 Greatest Overweight (x) 4 | . . 1 4 Average Overweight (x) . | . . . . Largest Inventory Capacity 8 | 6 6 6 8 Average Capacity 5 | 4 6 5 5 Most Carried 7 | 4 5 6 7 Average Carried 3 | 1 2 3 3 Final Capacity 6 | 6 6 4 4 Final Carried 5 | 2 5 4 1 Class Distribution -------------------- 68% | Scavenger-Mutant 31% | Mutant Dominant Class ---------------- Mutant | -10/Materials Scavenger-Mutant | -9/Materials Scavenger-Mutant | -8/Materials Resources | -11 -10 -9 -8 ----------- Run | Scr Mat Mat Mat Matter Collected 2113 | 205 118 808 982 Remotely . | . . . . Salvage Created 2163 | . 242 953 968 Parts 174 | . 14 100 60 Haulers Intercepted 3 | . . 1 2 Recyclers Shooed 4 | . 2 . 2 Parts Field Recycled . | . . . . Retrieved Matter . | . . . . Parts Self-Destructed . | . . . . Prevented . | . . . . Kills | -11 -10 -9 -8 ------- Run | Scr Mat Mat Mat Combat Hostiles Destroyed 60 | . 4 33 23 Guns 21 | . 4 10 7 Cannons 38 | . . 22 16 AOE 1 | . . 1 . Classes Destroyed 12 | . 3 6 3 Worker 4 | . . 3 1 Builder 8 | . . 3 5 Tunneler 1 | . . 1 . Hauler 3 | . . 1 2 Recycler 3 | . 1 . 2 Mechanic 1 | . . . 1 Watcher 3 | . 2 1 . Swarmer 27 | . . 16 11 Grunt 27 | . 4 14 9 Brawler 1 | . . . 1 Sentry 3 | . . 3 . Hunter 2 | . . . 2 Best Kill Streak 5 | . 2 5 4 Combat Bots Only 4 | . 2 4 4 Max Kills in Single Turn 3 | . 1 2 3 Gunslinging . | . . . . Exploded 1 | . . 1 . Melee . | . . . . Uniques/NPCs Destroyed . | . . . . Combat | -11 -10 -9 -8 -------- Run | Scr Mat Mat Mat Damage Taken 4674 | . 313 1737 2624 Core 822 | . 42 216 564 Absorbed by Shields 111 | . . . 111 Core Remaining (%) 76 | 100 83 46 . Volleys Fired 262 | 1 35 120 106 Largest 2 | 2 2 2 2 Hottest 112 | 70 70 88 112 Shots Fired 470 | 2 67 225 176 Gun 258 | 2 67 100 89 Cannon 208 | . . 125 83 Launcher 4 | . . . 4 Special . | . . . . Kinetic 328 | 1 35 169 123 Thermal 111 | 1 32 29 49 Explosive . | . . . . Electromagnetic 31 | . . 27 4 Robot Hit Streak 15 | 1 12 15 12 Robot Miss Streak 7 | 1 3 7 6 Penetration Max . | . . . . Secondary Targets 1 | . . . 1 Max Gunslinging Chain 1 | . . . 1 Shots Hit Robots 312 | 1 44 135 132 Core Hits 166 | . 16 65 85 Critical Hits 7 | . . 4 3 Critical Kills 3 | . . 2 1 Critical Parts Destroyed 4 | . . 2 2 Melee Attacks . | . . . . Impact . | . . . . Slashing . | . . . . Piercing . | . . . . Sneak Attacks . | . . . . Combat Hostiles . | . . . . Follow-up Attacks . | . . . . Damage Inflicted 5032 | 12 410 2127 2483 Guns 2111 | 12 403 657 1039 Cannons 2228 | . . 1269 959 Explosions 651 | . . 182 469 Melee . | . . . . Ramming 42 | . 7 19 16 Kinetic 2995 | . 191 1325 1479 Thermal 1272 | 12 212 498 550 Explosive . | . . . . Electromagnetic 723 | . . 285 438 Impact . | . . . . Slashing . | . . . . Piercing . | . . . . Highest Corruption 2 | . . 2 1 Average Corruption 1 | . . 2 1 Corruption Purged . | . . . . Overload Shots . | . . . . Overflow Damage 90 | . . 47 43 Projectiles 1 | . . . 1 Explosions 89 | . . 47 42 Melee . | . . . . Knockbacks 27 | . . 8 19 Impact . | . . . . Kinetic 25 | . . 6 19 Secondary 2 | . . 2 . Self-Inflicted Damage 185 | . . 94 91 Shots 5 | . . 1 4 Rammed 7 | . 1 3 3 Targets Rammed 14 | . 2 4 8 Kicked 5 | . . . 5 Crushed 2 | . 1 1 . Highest Temperature 252 | 20 231 64 252 Average Temperature 61 | 15 69 15 90 Received Heat Transfer 1540 | . 189 495 856 Effects 1 | . . . 1 Energy Bleed 1 | . . . 1 Siege Activations . | . . . . Robots Corrupted . | . . . . Combat Hostiles . | . . . . Parts Fried 3 | . . 1 2 Impact Corruptions . | . . . . Robots Melted . | . . . . Combat Hostiles . | . . . . Parts Melted 3 | . . 1 2 Heat Transferred 2422 | 37 629 757 999 Parts Sabotaged . | . . . . Parts Stolen . | . . . . Parts Stripped . | . . . . Power Chain Reactions 3 | . . 1 2 Missiles Intercepted . | . . . . Alert | -11 -10 -9 -8 ------- Run | Scr Mat Mat Mat Peak Influence 536 | . 139 536 527 Average Influence 268 | . 52 283 352 Maximum Alert Level 2 | . . 2 2 Low Security (%) 34 | 100 100 36 2 Level 1 36 | . . 24 67 Level 2 28 | . . 39 30 Level 3 . | . . . . Level 4 . | . . . . Level 5 . | . . . . High Security . | . . . . Max Security . | . . . . Squads Dispatched 10 | . . 5 5 Investigation 1 | . . . 1 Extermination . | . . . . Reinforcement 9 | . . 5 4 Assault . | . . . . Garrison . | . . . . Intercept . | . . . . Construction Impeded 3 | . . 2 1 Haulers Reinforced . | . . . . Stealth | -11 -10 -9 -8 --------- Run | Scr Mat Mat Mat Distress Signals 9 | . 1 3 5 Communications Jammed . | . . . . Distress Signals . | . . . . Times Spotted 119 | . 9 49 61 Peak Tracking Total 11 | . 3 5 11 Tactical Retreats 13 | . 1 3 9 Traps | -11 -10 -9 -8 ------- Run | Scr Mat Mat Mat Traps Triggered 5 | . . 2 3 Indirectly . | . . . . Trap Hack Attempts . | . . . . Triggered . | . . . . Disarmed . | . . . . Reprogrammed . | . . . . Reused . | . . . . Traps Extracted . | . . . . Installed . | . . . . Triggered . | . . . . Machines | -11 -10 -9 -8 ---------- Run | Scr Mat Mat Mat Machines Disabled 7 | . . 4 3 Max in Single Turn 1 | . . 1 1 Machines Sabotaged . | . . . . Garrisons Compromised . | . . . . Overloaded Fab Kills . | . . . . Fab Network Shutdowns . | . . . . Hacking | -11 -10 -9 -8 --------- Run | Scr Mat Mat Mat Machines Accessed 7 | . 1 3 3 Terminals 4 | . 1 2 1 Fabricators . | . . . . Repair Stations 2 | . . 1 1 Recycling Units 1 | . . . 1 Scanalyzers . | . . . . Garrison Access . | . . . . Total Hacks 20 | . 2 9 9 Successful 13 | . 1 7 5 Failed 7 | . 1 2 4 Catastrophic 1 | . 1 . . Database Lockouts . | . . . . Manual . | . . . . Terminals 13 | . 2 8 3 Fabricators . | . . . . Repair Stations 4 | . . 1 3 Recycling Units 3 | . . . 3 Scanalyzers . | . . . . Garrison Access . | . . . . Terminal Hacks 9 | . 1 7 1 Record 2 | . . 2 . Level Access Points 1 | . . . 1 Alert Level 1 | . . 1 . Unreport Threat 2 | . . 2 . Locate Traps 1 | . 1 . . Dispatch Records 1 | . . 1 . Recall Assault 1 | . . 1 . Fabricator Hacks . | . . . . Repair Station Hacks 1 | . . . 1 Scan Component 1 | . . . 1 Recycling Unit Hacks 3 | . . . 3 Report Inventory 1 | . . . 1 Retrieve Matter 1 | . . . 1 Retrieve Components 1 | . . . 1 Scanalyzer . | . . . . Garrison Access Hacks . | . . . . Unauthorized Hacks . | . . . . Terminals . | . . . . Fabricators . | . . . . Repair Stations . | . . . . Recycling Units . | . . . . Scanalyzers . | . . . . Garrison Access . | . . . . Data Cores Recovered . | . . . . Used . | . . . . Hacking Detections 7 | . 1 3 3 Full Trace Events . | . . . . Feedback Events . | . . . . Feedback Blocked . | . . . . Robot Schematics Acquired . | . . . . Robots Built . | . . . . Matter . | . . . . Time . | . . . . Total Robot Build Rating . | . . . . Part Schematics Acquired . | . . . . Parts Built . | . . . . Matter . | . . . . Time . | . . . . Total Part Build Rating . | . . . . Parts Repaired . | . . . . Time . | . . . . Parts Recycled . | . . . . Recycled Matter . | . . . . Retrieved Matter 157 | . . . 157 Retrieved Components 10 | . . . 10 Parts Scanalyzed . | . . . . Part Schematics Acquired . | . . . . Parts Damaged . | . . . . Bothacking | -11 -10 -9 -8 ------------ Run | Scr Mat Mat Mat Used RIF Installer . | . . . . Robots Hacked . | . . . . Non-combat . | . . . . Combat . | . . . . Robot Hacks Applied . | . . . . Relay Couplers Released . | . . . . Robots Rewired . | . . . . Allies Hacked . | . . . . Hacks Repelled . | . . . . Allies | -11 -10 -9 -8 -------- Run | Scr Mat Mat Mat Total Allies . | . . . . Largest Group . | . . . . Highest-Rated Group . | . . . . Highest-Rated Ally . | . . . . Total Orders . | . . . . Ally Attacks . | . . . . Total Damage . | . . . . Kills . | . . . . Allies Corrupted . | . . . . Allies Melted . | . . . . Intel | -11 -10 -9 -8 ------- Run | Scr Mat Mat Mat Robot Analysis Total . | . . . . Derelict Logs Recovered . | . . . . Drone Launches . | . . . . Drone Recoveries . | . . . . Exploration | -11 -10 -9 -8 ------------- Run | Scr Mat Mat Mat Turns Passed 2918 | 64 446 1284 1124 Spaces Moved 1096 | 33 204 483 376 Core 12 | 4 . . 8 Treads 679 | 29 204 269 177 Legs 405 | . . 214 191 Wheels . | . . . . Hover . | . . . . Flight . | . . . . Fastest Speed 50 | 50 160 120 120 Average Speed 148 | 146 160 148 143 Slowest Speed 250 | 160 160 160 250 Overloaded Moves . | . . . . Propulsion Burnouts . | . . . . Robots Hopped . | . . . . Cave-ins Triggered . | . . . . Exploration Rate (%) 25 | 4 40 34 22 Regions Visited 3 Branch Regions . Pre-discovered Areas . | . . . . Known Exits Taken . | . . . . Unknown Exits Taken 3 | 1 1 1 . Scrap Searched . | . . . . Spaces Dug . | . . . . Terrain Destroyed 46 | . . 40 6 Melee . | . . . . Projectile . | . . . . AOE 46 | . . 40 6 Actions | -11 -10 -9 -8 --------- Run | Scr Mat Mat Mat Total 1927 | 47 263 834 783 Wait 358 | . 7 147 204 Move 1093 | 32 203 482 376 Hop . | . . . . Pick Up 73 | 8 8 28 29 Fast Attach 6 | . . 1 5 Attach 38 | 6 3 9 20 Detach 1 | . . 1 . Swap 40 | . 2 20 18 Drop 42 | . 3 22 17 Fire 262 | 1 35 120 106 Melee . | . . . . Ram . | . . . . Kick 8 | . . 1 7 Crush 6 | . 2 3 1 Escape Stasis . | . . . . Rewire . | . . . . Trap . | . . . . Miscellaneous . | . . . . Route ------- -11/Scrapyard -10/Materials -9/Materials -8/Materials (discovered 3 exits: *Fac x3) History --------- Turn | Location | Event 20 | -11/Scrapyard | Discovered new exit (range 16) 65 | -11/Scrapyard | Entered Materials 307 | -10/Materials | Build established: Mutant 455 | -10/Materials | Discovered new exit (range 16) 511 | -10/Materials | Entered another Materials area 511 | -9/Materials | Evolved 2 slots: Power x1, Utility x1 1003 | -9/Materials | Build established: Scavenger-Mutant 1315 | -9/Materials | Lost 3 parts (1p1n1u) 1594 | -9/Materials | Core integrity fell below 50% 1757 | -9/Materials | Discovered new exit (range 16) 1795 | -9/Materials | Entered another Materials area 1795 | -8/Materials | Evolved 2 slots: Propulsion x1, Utility x1 2781 | -8/Materials | Core integrity fell below 50% 2820 | -8/Materials | Lost 9 parts (2p2n2u3w) 2842 | -8/Materials | Identified exit to Factory 2912 | -8/Materials | Core integrity fell below 20% 2919 | -8/Materials | Destroyed by G-47 Trooper with Particle Gun Last Messages --------------- 02872_ U-05 Engineer builds a Wall. 02877_ Destroyed Particle Gun. 02882_ Particle Gun destroyed. 02883_ Slammed into G-47 Trooper. 02884_ Kicked G-47 Trooper out of the way. 02885_ Destroyed Backup Laser I. 02885_ Adv. EMP Blaster destroyed. 02885_ Destroyed Adv. EMP Blaster. 02885_ U-05 Engineer destroyed. 02888_ Kicked G-47 Trooper out of the way. 02890_ Slammed into B-36 Bruiser. 02891_ G-47 Trooper IFF system glitched. 02891_ G-47 Trooper destroyed. 02891_ Com. Matter Pod destroyed. 02892_ G-47 Trooper misfires. 02902_ G-47 Trooper IFF system glitched. 02905_ W-25 Informer sends out distress signal. 02908_ Imp. Heat Sink destroyed. 02911_ Aluminum Leg destroyed. 02912_ Kicked G-47 Trooper out of the way. Map ----- +----------------------------------------------------+ | ??????????????# #???????# #??# #???? | | ??????????????#= #???????# #??# #???? | | ??????????#####%* #???????# #??# #???? | | ?????###### # #???????##############+####? | | ?????# #??????????????????#! #? | | ?????#" #??????????????????#[ #? | | ?????#" #|! #??????????????????#! #? | | ?????#" =%=%% #??????????????????# " " #? | | ?????#T !!#=% #??????????????????# "R" #? | | ?????#" # #??????????????????#] """ #? | | ?????#" # #??????????????????########? | | ?????#" =%* #% #??????????????????????????? | | ?????# = # #??????????????????????????? | | ?????########## #??????????????????????????? | | ??????????????# #??????????????????????????? | | ??????????????# #??????????????????????????? | | ??????????????# #??????????????????????????? | | ??????????????# #??????????????????????????? | | ??????????????# #??????????????????????????? | | ??????????????# #??????????????????????????? | | ??????????????# #??????????????????????????? | | ??????????????# #??????????????????????????? | | ??????????????# #??????????????????????????? | | ???????????#### g####+####+########+#???????? | | ???# # g b gg #????? | | ???# + w% @* < #????? | | ???? """"" # g T ??????? | | ???????""??#ko #####/##### ##???????? | | ???????????# ??? ???? ""???????? | | ???????????# ?# ???? """ G???????? | | ???????????# ?# ???? k """ ""???????? | | ???????????# ?# ????? """ ? ##???????? | | ???????????# ?# ???? ????????????? | | ???????????# ??# ???? ???????????? | | ??????????? ??# ????#"Y"## ???????????? | | ??????????? ???# ?????"""#?????????????? | | ??????????# ???+ ????#????????????????? | | ????????????????# ?????????????????????? | | ????????????????# ?????????????????????? | | ?????????????????#######?????????????????????? | | ?????????????????????????????????????????????? | | ?????????????????????????????????????????????? | | ?????????????????????????????????????????????? | | ?????????????????????????????????????????????? | | ?????????????????????????????????????????????? | | ?????????????????????????????????????????????? | | ?????????????????????????????????????????????? | | ?????????????????????????????????????????????? | | ?????????????????????????????????????????????? | | ?????????????????????????????????????????????? | +----------------------------------------------------+ Best States ------------- Heat Dissipation 59 Energy Generation 23 Energy Capacity 380 Matter Stores 492 Matter Capacity 550 Sight Range 16 Terrain Scan Density 10 Base Temperature (-) 100 Armor Coverage 225 Evasion (%) 40 Recoil Reduction 3 Offensive Hacking 10 Item Schematics ----------------- None Robot Schematics ------------------ None Fabricated ------------ Nothing Alien Tech Used ----------------- None Achievements -------------- None Challenges ------------ None Game ------ Seed CloakDataNetwork Manual? 0 Play Time 00:35:08 Cumulative 17.4 hours Start 2020.03.07 @ 04:12:47 End 2020.03.07 @ 04:43:35 Sessions 1 Manual Loads 0 Difficulty Rogue Special Mode None Game No. 40 Rogue 39 Adventurer 1 Explorer 0 Win Type - Total 0 Types 0/0/0/0/0/0/0 Lore% 16 Gallery% 27 Achievement% 16 Wizard Run 0 Options --------- ASCII 0 Keyboard 0 Movement Mouse Keybinds 0 Fullscreen 1 Font 36/Smallcaps Map View 76x50 Tactical HUD 1 Map Filters NONE Filters NONE Steam 1 RUN: ad112844-078d-45cb-aeab-cdd13398c8fc